bitfinex/quotes_ETHUSD_20250903
["timestamp","ask_amount","ask_price","bid_price","bid_amount"]
[1756865056535,4.1732,4331.9,4331.8,1.276]
[1756865057035,0.1152,4331.9,4331.8,1.4036]
[1756865057438,0.1152,4332.1,4331.8,1.4036]
[1756865057634,0.1152,4332.1,4331.9,0.9465]
[1756865057834,2.761,4333.3,4332.4,2.30817968]
[1756865058039,2.761,4333.3,4331.9,2.6877]
[1756865058040,0.1152,4332.7,4332.5,0.9465]
[1756865058244,0.1152,4332.7,4332.6,0.9465]
[1756865058444,0.1152,4332.7,4332.6,1.252]
[1756865059354,1.626,4334.0,4332.6,3.5600829]
[1756865059533,0.1152,4333.2,4332.7,0.9465]
[1756865059736,0.1152,4333.2,4332.8,3.25445121]
[1756865059967,0.1152,4333.2,4333.1,0.3055]
[1756865060355,0.1152,4333.2,4333.1,1.252]
[1756865060667,16.39636528,4335.2,4333.1,1.252]
[1756865060668,1.626,4334.8,4333.1,1.3772]
[1756865060836,0.1152,4333.7,4333.3,2.30767674]
[1756865061036,0.1152,4333.7,4333.6,0.3055]
[1756865061372,0.1152,4333.7,4333.6,1.252]
[1756865062667,0.1152,4333.7,4333.6,3.5595503]
[1756865063037,0.1152,4333.7,4333.6,1.252]
[1756865063744,0.13833705,4333.7,4333.6,1.252]
[1756865064271,0.1152,4333.7,4333.6,1.252]
[1756865064949,0.1152,4333.7,4333.1,0.9465]
[1756865065149,0.1152,4333.3,4333.1,0.9465]
[1756865065374,0.1152,4333.3,4333.2,1.252]
[1756865065970,2.30718493,4334.3,4333.3,2.30771005]
[1756865066159,2.3070399,4334.6,4332.7,5.676]
[1756865066160,2.30712633,4334.4,4333.4,3.2541526]
[1756865066478,2.30717742,4334.4,4334.2,0.3055]
[1756865066781,2.30717742,4334.4,4333.7,0.4994]
[1756865066782,2.30733804,4334.0,4333.7,0.4994]
[1756865066980,2.30717762,4334.3,4333.3,4.052]
[1756865066981,0.02313705,4333.9,4333.3,0.4471]
[1756865067162,0.001,4333.7,4333.3,0.4471]
[1756865067366,0.001,4333.7,4333.6,0.3055]
[1756865067776,0.001,4333.7,4333.6,1.252]
[1756865070848,0.001,4333.7,4333.6,1.2525]
[1756865073560,0.001,4333.7,4333.1,0.9393]
[1756865073787,0.001,4333.7,4333.1,0.4917]
[1756865073958,0.23084554,4333.6,4333.1,0.4917]
[1756865074158,0.001,4333.7,4333.5,0.302]
[1756865074654,0.001,4333.7,4333.6,0.9393]
[1756865075485,0.001,4333.7,4333.6,1.2413]
[1756865077584,0.001,4333.7,4332.9,2.30791386]
[1756865077585,0.001,4333.7,4333.5,4.037]
[1756865077759,0.1152,4333.3,4333.2,4.035]
[1756865077952,0.001,4333.7,4333.2,5.2763]
[1756865078158,0.001,4333.7,4333.3,0.9393]
[1756865078358,0.1152,4333.5,4333.3,0.9393]
[1756865078896,0.02313705,4333.4,4332.9,0.4917]
[1756865079053,0.02313705,4333.4,4332.9,4.5277]
[1756865079255,0.1152,4333.0,4332.7,3.93399956]
[1756865079453,0.1152,4333.0,4332.4,2.42336539]
[1756865079454,0.02313705,4332.9,4332.6,4.035]
[1756865079654,0.1152,4333.0,4332.8,0.302]
[1756865079893,0.1152,4333.0,4332.9,0.9393]
[1756865080098,0.1152,4333.0,4332.9,1.2413]
[1756865080592,0.1152,4333.1,4332.9,1.2413]
[1756865080802,0.1152,4333.1,4332.5,0.1152]
[1756865080963,0.02313705,4333.0,4332.5,4.036]
[1756865081164,0.02313705,4333.0,4332.4,4.035]
[1756865081165,2.30806205,4332.7,4332.4,4.035]
[1756865081371,2.30818438,4332.5,4332.3,1.626]
[1756865081565,0.099,4332.4,4332.0,0.1152]
[1756865081782,2.40720241,4332.4,4332.0,0.1152]
[1756865082082,2.30845587,4331.9,4331.8,0.024]
[1756865082460,2.33159292,4331.9,4331.8,0.024]
[1756865082660,2.90610858,4331.9,4331.8,0.024]
[1756865085260,0.59071566,4331.9,4331.8,0.024]
[1756865085476,0.1152,4331.9,4331.8,0.024]
[1756865085676,2.42365587,4331.9,4331.8,0.024]
[1756865085963,0.1152,4331.9,4331.8,0.024]
[1756865086164,2.42365587,4331.9,4331.8,0.024]
[1756865086493,0.1152,4331.9,4331.8,1.2653]
[1756865086698,2.30788429,4333.0,4332.0,2.30837634]
[1756865086900,0.1152,4332.2,4332.1,0.9393]
[1756865087064,1.627,4333.2,4332.1,1.26438349]
[1756865087265,0.1152,4332.7,4332.5,2.30813597]
[1756865087616,0.1152,4332.7,4332.6,3.5493829]
[1756865087817,0.1152,4332.7,4332.6,0.4917]
[1756865088105,0.02413705,4333.7,4332.6,3.54937539]
[1756865088106,2.30755548,4333.6,4332.6,3.54937539]
[1756865088411,0.001,4333.7,4332.6,3.54937539]
[1756865088412,0.1152,4332.8,4332.6,1.2413]
[1756865088593,0.1152,4332.8,4332.7,0.9393]
[1756865088976,0.1152,4333.2,4332.8,2.30796761]
[1756865089180,0.1152,4333.2,4332.9,0.4917]
[1756865089386,0.1152,4333.2,4332.8,4.041]
[1756865089602,0.38062997,4333.2,4332.6,0.1152]
[1756865089897,0.1152,4332.7,4331.9,4.5327]
[1756865090102,2.30809062,4332.6,4332.0,0.4476]
[1756865090264,2.42333867,4332.5,4332.0,0.4476]
[1756865090465,2.30798709,4332.8,4332.1,0.9393]
[1756865090710,0.02313705,4333.3,4332.1,0.9393]
[1756865090711,0.1152,4332.3,4332.1,0.9393]
[1756865090873,0.1152,4332.3,4331.8,2.5903]
[1756865091064,0.1152,4332.3,4332.0,0.9393]
[1756865092496,0.1152,4332.3,4331.9,4.043]
[1756865092497,4.043,4333.7,4332.2,0.302]
[1756865092697,0.1152,4332.6,4332.2,0.302]
[1756865092899,0.1152,4332.6,4332.2,0.7937]
[1756865093099,0.1152,4332.6,4332.2,4.041]
[1756865093308,0.1152,4332.6,4332.3,0.9393]
[1756865093808,0.1152,4332.6,4332.4,0.9393]
[1756865093992,0.1152,4332.6,4332.4,0.4917]
[1756865094163,0.1152,4332.6,4332.2,4.4886]
[1756865094369,0.1152,4332.6,4331.9,2.80010932]
[1756865094370,2.33127338,4332.5,4331.9,0.4917]
[1756865094579,0.1152,4332.2,4332.0,4.038]
[1756865094787,0.1152,4332.2,4331.9,0.4917]
[1756865094985,0.1152,4332.2,4331.8,6.1366]
[1756865095267,0.23312734,4332.4,4331.8,1.651]
[1756865095576,1.65013705,4333.1,4331.8,0.024]
[1756865095577,2.42365587,4331.9,4331.8,0.024]
[1756865095905,0.1152,4331.9,4331.8,0.024]
[1756865096405,0.1152,4331.9,4331.8,1.2653]
[1756865097214,0.1152,4331.9,4331.8,0.024]
[1756865098007,0.35755204,4331.9,4331.8,0.024]
[1756865098469,0.1152,4331.9,4331.8,1.2653]
[1756865099204,0.1152,4331.9,4331.8,0.326]
[1756865099380,0.1152,4332.0,4331.8,1.2666]
[1756865099587,0.1152,4332.0,4331.9,0.9406]
[1756865099768,0.1152,4332.0,4331.8,0.326]
[1756865100209,0.02313705,4333.0,4331.9,0.4987]
[1756865100505,0.1152,4332.0,4331.9,0.4987]
[1756865100809,0.1152,4332.0,4331.9,1.248]
[1756865101601,0.1152,4332.0,4331.8,0.024]
[1756865101810,2.62229292,4331.9,4331.8,0.024]
[1756865102437,2.88579292,4331.9,4331.8,0.024]
[1756865102612,4.75129258,4331.9,4331.8,0.024]
[1756865103510,4.75129258,4331.9,4331.3,0.004]
[1756865103511,0.792,4331.7,4331.3,0.004]
[1756865103821,6.21592235,4331.4,4331.3,0.004]
[1756865104026,6.50472235,4331.4,4331.3,0.004]
[1756865104226,6.77002235,4331.4,4331.3,0.004]
[1756865104418,7.67788616,4331.4,4331.3,0.004]
[1756865104926,7.67788616,4331.4,4331.3,1e-08]
[1756865105500,7.67788616,4331.4,4330.8,0.02]
[1756865105501,3.10093558,4331.0,4330.9,1e-08]
[1756865105696,4.75107263,4331.0,4330.9,1e-08]
[1756865106004,6.10109552,4330.7,4330.6,1e-08]
[1756865106203,6.10109552,4330.7,4328.8,0.02]
[1756865106204,3.792,4330.6,4328.8,0.02]
[1756865106405,3.50795567,4328.9,4328.8,0.02]
[1756865106604,7.56109272,4328.9,4328.8,0.02]
[1756865106804,10.80145567,4328.9,4328.8,0.02]
[1756865107005,10.80145567,4328.9,4328.8,1e-08]
[1756865107303,3.10258943,4327.9,4327.8,0.02]
[1756865107627,11.90092648,4327.9,4327.8,1e-08]
[1756865107796,12.16658943,4327.9,4327.8,1e-08]
[1756865107999,12.43188943,4327.9,4327.8,1e-08]
[1756865110231,8.39888943,4327.9,4327.8,1e-08]
[1756865110434,13.34762814,4327.9,4327.8,1e-08]
[1756865110835,13.50382814,4327.9,4327.8,1e-08]
[1756865112204,13.38862814,4327.9,4327.8,1e-08]
[1756865112400,9.46982814,4327.9,4327.8,1e-08]
[1756865113162,13.23752814,4327.9,4327.8,1e-08]
[1756865113306,13.23652814,4327.9,4327.8,1e-08]
[1756865114262,13.23752814,4327.9,4327.8,1e-08]
[1756865114401,9.15672814,4327.9,4327.8,1e-08]
[1756865114802,6.84613871,4327.9,4327.8,1e-08]
[1756865115038,5.12372814,4327.9,4327.8,1e-08]
[1756865115339,13.49992814,4327.9,4327.8,1e-08]
[1756865116153,9.46792814,4327.9,4327.8,1e-08]
[1756865116350,13.34472814,4327.9,4327.8,1e-08]
[1756865117344,13.76885246,4327.9,4327.8,1e-08]
[1756865118424,13.34472814,4327.9,4327.8,1e-08]
[1756865118622,13.04772814,4327.9,4327.8,1e-08]
[1756865118828,9.01472814,4327.9,4327.8,1e-08]
[1756865119026,13.04372814,4327.9,4327.8,1e-08]
[1756865119328,13.49592814,4327.9,4327.8,1e-08]
[1756865120760,13.49592814,4327.9,4326.8,1e-08]
[1756865120965,13.49592814,4327.9,4325.6,0.4987]
[1756865120966,0.792,4326.0,4325.6,0.4987]
[1756865121163,2.3115739,4326.1,4325.2,0.4419]
[1756865121164,7.84785768,4325.9,4325.2,0.4419]
[1756865121467,11.88085768,4325.9,4325.4,0.4987]
[1756865123485,7.84785768,4325.9,4325.8,1.268]
[1756865123660,11.87885768,4325.9,4325.8,1.268]
[1756865123867,12.94467084,4325.9,4325.8,1.268]
[1756865124172,12.94467084,4325.9,4325.8,0.02]
[1756865124863,12.94267084,4325.9,4325.8,1.268]
[1756865125472,4.029,4325.9,4325.8,1.268]
[1756865125847,6.34065768,4325.9,4325.8,1.268]
[1756865126066,2.31165614,4326.0,4325.8,1.268]
[1756865126258,4.034,4325.9,4325.8,0.3274]
[1756865126569,7.16079473,4325.9,4325.8,0.3274]
[1756865126739,1.73923677,4325.9,4325.8,1.268]
[1756865126937,4.032,4325.9,4325.8,1.268]
[1756865127274,6.34365768,4325.9,4325.8,1.268]
[1756865127485,1.629,4326.6,4325.8,1.268]
[1756865127649,2.31150076,4326.2,4325.9,0.9406]
[1756865127854,6.3425759,4326.1,4326.0,0.9406]
[1756865128177,7.20797412,4326.1,4326.0,1.248]
[1756865128347,7.99997412,4326.1,4326.0,1.248]
[1756865128548,7.99997412,4326.1,4325.8,0.02]
[1756865128549,3.10365768,4325.9,4325.8,0.02]
[1756865128750,7.15779473,4325.9,4325.8,0.02]
[1756865128980,7.13465768,4325.9,4325.8,0.02]
[1756865129181,8.16582086,4325.9,4325.8,0.02]
[1756865129979,11.16582086,4325.9,4325.8,0.02]
[1756865132283,11.26482086,4325.9,4325.8,0.02]
[1756865132485,11.56182086,4325.9,4325.8,1e-08]
[1756865133370,11.71802086,4325.9,4325.8,1e-08]
[1756865133882,11.25882086,4325.9,4325.8,1e-08]
[1756865134848,11.55582086,4325.9,4325.8,1e-08]
[1756865135087,11.71202086,4325.9,4325.8,1e-08]
[1756865135592,11.82722086,4325.9,4325.8,1e-08]
[1756865136464,3.792,4325.8,4324.8,1e-08]
[1756865136667,6.10419218,4324.9,4324.8,1e-08]
[1756865136981,11.87319218,4324.9,4324.8,1e-08]
[1756865137289,7.05719218,4324.9,4324.8,1.21250001]
[1756865137475,10.96519218,4324.9,4324.8,1.21250001]
[1756865137675,5.537,4324.9,4324.8,1.21250001]
[1756865137877,9.561,4324.9,4324.8,1.21250001]
[1756865138080,8.87319218,4324.9,4324.8,1.21250001]
[1756865138606,6.561,4324.9,4324.8,1.21250001]
[1756865139390,8.87319218,4324.9,4324.8,1.21250001]
[1756865139600,9.99172195,4324.9,4324.8,1.21250001]
[1756865139800,12.99172195,4324.9,4324.8,1e-08]
[1756865140569,8.96772195,4324.9,4324.8,0.74710001]
[1756865140762,12.99572195,4324.9,4324.8,1e-08]
[1756865142882,13.09472195,4324.9,4324.8,1e-08]
[1756865143477,8.96772195,4324.9,4324.8,1e-08]
[1756865143670,8.05972195,4324.9,4324.8,0.29090001]
[1756865143889,8.17572195,4324.9,4324.8,1.21250001]
[1756865144070,11.08719218,4324.9,4324.8,1.21250001]
[1756865144289,11.08719218,4324.9,4324.8,1e-08]
[1756865144607,11.87919218,4324.9,4324.8,1e-08]
[1756865144808,7.84919218,4324.9,4324.8,0.29090001]
[1756865145104,12.96784806,4324.9,4324.8,1.21250001]
[1756865145302,7.05719218,4324.9,4324.8,1.21250001]
[1756865145478,11.88119218,4324.9,4324.8,1.21250001]
[1756865145685,7.05719218,4324.9,4324.8,1.21250001]
[1756865146006,4.032,4325.3,4324.8,1.21250001]
[1756865146207,0.116,4324.9,4324.8,0.29090001]
[1756865146875,0.116,4324.9,4324.8,1.21250001]
[1756865147504,0.116,4324.9,4324.8,1.56498552]
[1756865147706,0.116,4324.9,4324.8,1.21250001]
[1756865147908,0.116,4325.0,4324.8,1.21250001]
[1756865148094,0.116,4325.0,4324.9,0.9216]
[1756865148409,0.116,4325.0,4324.9,3.23379218]
[1756865148613,0.116,4325.0,4324.9,10.5768141]
[1756865148778,0.116,4325.0,4324.9,21.65369218]
[1756865149116,0.1152,4326.3,4325.0,3.0]
[1756865149311,0.1152,4327.0,4326.4,0.1152]
[1756865149607,0.1152,4327.0,4326.2,0.2909]
[1756865149608,2.42627265,4327.0,4326.7,0.2909]
[1756865149771,2.33117685,4326.8,4326.7,0.2909]
[1756865149989,2.33117685,4326.8,4325.9,0.4562]
[1756865149990,0.792,4326.7,4325.9,0.4562]
[1756865150321,2.31140262,4326.4,4326.0,0.4654]
[1756865150482,2.31140262,4326.4,4326.1,0.4562]
[1756865150685,0.02,4326.8,4326.3,0.2909]
[1756865150881,0.02,4326.8,4326.4,0.9216]
[1756865151090,2.3113371,4326.5,4326.4,0.4562]
[1756865151322,0.792,4326.4,4325.9,0.4562]
[1756865151620,2.31160425,4326.0,4325.9,0.4562]
[1756865151786,2.31181801,4325.6,4325.5,1.63]
[1756865151986,0.1152,4325.6,4325.5,1.2125]
[1756865153018,0.1152,4325.6,4325.5,3.64562145]
[1756865153219,0.1152,4325.6,4325.5,1.33375]
[1756865153405,0.1152,4325.6,4325.5,1.2125]
[1756865154993,0.792,4326.7,4325.5,3.52437145]
[1756865155190,0.1152,4325.9,4325.6,0.9216]
[1756865155395,0.1152,4325.9,4325.8,0.2909]
[1756865155818,0.1152,4325.9,4325.8,1.2125]
[1756865156519,0.1152,4325.9,4325.8,1.33375]
[1756865156744,0.02,4326.8,4326.0,2.31159022]
[1756865156889,0.1152,4326.3,4326.1,3.23313954]
[1756865157088,0.1152,4326.3,4326.2,1.2125]
[1756865158648,0.001,4326.5,4326.2,1.2125]
[1756865158925,0.001,4326.5,4326.3,3.23303842]
[1756865159418,0.001,4326.5,4326.4,0.4571]
[1756865159593,0.001,4326.5,4326.4,1.1769]
[1756865160205,0.001,4326.5,4326.4,0.2909]
[1756865160523,0.001,4326.5,4326.0,0.4289]
[1756865160725,0.001,4326.5,4326.4,0.2892]
[1756865161231,0.1162,4326.5,4326.4,1.1752]
[1756865161790,2.31167498,4325.9,4325.6,5.655]
[1756865162026,0.02313705,4325.8,4325.6,0.4289]
[1756865162327,2.42696908,4325.7,4325.1,0.4289]
[1756865162541,0.1152,4325.4,4325.1,0.4289]
[1756865162697,0.1152,4325.4,4325.3,0.2892]
[1756865163109,0.1152,4325.4,4325.3,0.7181]
[1756865164101,0.1152,4325.4,4325.3,1.1752]
[1756865164311,0.24574904,4326.5,4325.3,1.19831978]
[1756865164312,2.3115434,4326.2,4325.3,1.19831978]
[1756865164636,0.1152,4326.0,4325.5,5.31187145]
[1756865164844,0.001,4326.5,4326.1,2.31149782]
[1756865165066,0.001,4326.5,4326.4,2.31139053]
[1756865165345,0.02,4326.8,4326.7,2.31123026]
[1756865165508,0.02,4326.8,4326.7,2.58279329]
[1756865165714,0.02,4326.8,4326.7,1.56196303]
[1756865166024,0.02,4326.8,4326.7,3.87319329]
[1756865166222,0.02,4326.8,4326.7,6.87319329]
[1756865166712,0.02,4326.8,4326.7,10.89719329]
[1756865167109,2.3113407,4328.4,4326.8,3.45176998]
[1756865167110,0.001,4328.4,4326.8,3.45176998]
[1756865167436,0.001,4328.4,4327.8,21.51282522]
[1756865167612,0.001,4328.4,4327.8,38.55902522]
[1756865167813,0.001,4328.4,4327.8,39.44502522]
[1756865168125,0.001,4328.4,4328.3,2.31037589]
[1756865168467,0.001,4328.4,4328.3,6.75587465]
[1756865168751,0.001,4328.4,4328.3,19.0079709]
[1756865169141,0.001,4328.4,4328.3,14.9769709]
[1756865169446,0.001,4328.4,4328.3,19.0069709]
[1756865170633,0.001,4328.4,4328.3,19.0039709]
[1756865171051,0.02,4329.8,4328.7,2.3101624]
[1756865171259,0.02,4329.8,4328.7,24.62011478]
[1756865171437,0.02,4329.8,4328.7,25.79531478]
[1756865171617,0.02,4329.8,4328.7,36.89531478]
[1756865172813,0.02,4329.8,4328.7,35.86831478]
[1756865173020,0.02,4329.8,4328.7,39.89931478]
[1756865173556,0.02,4329.8,4328.8,3.0]
[1756865173717,0.02,4329.8,4329.0,3.0]
[1756865174116,0.02,4329.8,4329.7,5.59882884]
[1756865174365,0.02,4329.8,4329.7,9.62882884]
[1756865174663,0.02,4329.8,4329.7,6.05592884]
[1756865174859,0.02,4329.8,4329.7,7.031]
[1756865175613,0.02,4329.8,4329.7,8.20086998]
[1756865175816,0.02,4329.8,4329.7,8.65796998]
[1756865176341,0.02,4329.8,4329.7,10.51582884]
[1756865176552,0.02,4329.8,4329.7,8.2062]
[1756865176731,0.02,4329.8,4329.7,4.028]
[1756865176917,0.02,4329.8,4329.7,7.07882512]
[1756865177113,0.02,4329.8,4329.7,7.51282884]
[1756865177314,0.02,4329.8,4329.7,8.47119383]
[1756865177560,0.02,4329.8,4329.7,10.62802884]
[1756865177725,0.02,4329.8,4329.7,21.61282884]
[1756865177931,0.02,4329.8,4329.7,21.72802884]
[1756865179718,0.02,4331.8,4330.6,3.0]
[1756865179918,0.1152,4331.6,4331.2,2.30881614]
[1756865180137,0.1152,4331.6,4331.3,4.4589]
[1756865180336,0.1152,4331.6,4331.4,0.02308722]
[1756865180627,0.02,4331.8,4331.5,4.7481]
[1756865180824,0.02,4331.8,4331.6,0.02308615]
[1756865181140,0.02,4331.8,4331.7,26.83014485]
[1756865181462,0.02,4331.8,4331.7,10.62796245]
[1756865182449,0.02,4331.8,4331.7,11.41996245]
[1756865183351,1e-08,4331.8,4331.7,11.41996245]
[1756865183962,1e-08,4331.8,4331.7,7.39096245]
[1756865184181,1e-08,4331.8,4331.7,4.034]
[1756865184470,1e-08,4331.8,4331.7,6.63176245]
[1756865184626,1e-08,4331.8,4331.7,4.7521]
[1756865184820,1e-08,4331.8,4331.7,7.06666245]
[1756865185021,1e-08,4331.8,4331.7,10.06666245]
[1756865185256,0.021,4332.8,4332.7,2.30802963]
[1756865185468,0.021,4332.8,4332.7,10.97302963]
[1756865185635,0.021,4332.8,4332.7,12.14822963]
[1756865185833,0.021,4332.8,4332.7,9.8402]
[1756865186059,0.021,4332.8,4332.7,12.14822963]
[1756865186534,0.021,4332.8,4332.7,4.627]
[1756865186738,0.021,4332.8,4332.7,8.664]
[1756865187147,0.021,4332.8,4332.7,10.97202963]
[1756865187751,0.021,4332.8,4332.7,8.664]
[1756865188259,0.021,4332.8,4332.7,10.97202963]
[1756865188958,0.021,4332.8,4332.7,4.627]
[1756865189263,0.021,4332.8,4332.7,8.661]
[1756865189434,0.021,4332.8,4332.7,10.96902963]
[1756865189940,0.021,4332.8,4332.7,6.93502963]
[1756865190139,0.12,4332.8,4332.7,5.658]
[1756865190850,0.021,4332.8,4332.7,5.658]
[1756865191227,0.021,4332.8,4332.7,1.627]
[1756865191433,0.12,4332.8,4332.7,1.627]
[1756865191632,0.5081,4332.8,4332.7,5.656]
[1756865191831,0.12,4332.8,4332.7,1.627]
[1756865192140,0.12,4332.8,4332.7,22.7578824]
[1756865192141,0.021,4332.8,4332.7,22.7578824]
[1756865192340,0.001,4333.3,4333.2,2.30776331]
[1756865192664,0.001,4333.3,4333.2,9.34176331]
[1756865193161,0.001,4333.3,4333.2,5.30776331]
[1756865193368,0.001,4333.3,4333.2,9.63496331]
[1756865193662,0.001,4333.3,4333.2,9.34076331]
[1756865194229,0.001,4333.3,4333.2,10.19396331]
[1756865194631,0.001,4333.3,4333.2,4.1482]
[1756865194969,0.001,4333.3,4333.2,6.45496331]
[1756865195370,0.001,4333.3,4333.2,4.1472]
[1756865195742,0.1,4333.3,4333.2,4.1452]
[1756865196137,0.1,4333.3,4333.2,0.1152]
[1756865196367,0.1,4333.3,4333.2,4.029]
[1756865197158,0.1,4333.3,4333.0,0.1152]
[1756865197366,0.1,4333.3,4333.2,4.029]
[1756865198577,0.1,4333.3,4333.2,4.025]
[1756865198878,2.30809292,4332.6,4331.8,1.627]
[1756865199043,0.1162,4333.3,4332.5,0.2942]
[1756865199248,0.001,4333.3,4332.7,2.30802338]
[1756865199583,0.001,4333.3,4332.7,3.1152]
[1756865199873,2.42296768,4333.2,4332.8,4.034]
[1756865200183,0.099,4332.9,4332.7,0.1152]
[1756865200484,0.099,4332.9,4332.8,4.034]
[1756865200688,0.5081,4332.9,4332.8,4.033]
[1756865200852,0.2142,4332.9,4332.3,1.7422]
[1756865201046,0.2142,4332.9,4332.4,4.033]
[1756865201250,0.2142,4332.9,4332.5,4.032]
[1756865201640,2.52215321,4332.9,4332.5,4.032]
[1756865201842,2.30809534,4332.6,4332.3,1.627]
[1756865202094,2.30824365,4332.3,4331.6,1.7422]
[1756865202247,0.1152,4332.2,4331.7,9.33956177]
[1756865202460,0.1152,4332.2,4331.7,7.031]
[1756865202797,0.099,4331.8,4331.6,1.627]
[1756865203180,0.1152,4331.9,4331.7,4.03]
[1756865203360,0.1152,4331.9,4331.8,0.2942]
[1756865203561,0.1152,4331.9,4331.8,0.738]
[1756865203766,0.1152,4331.9,4331.8,0.2942]
[1756865203965,0.792,4333.2,4331.8,3.50670916]
[1756865204180,0.1152,4332.3,4331.8,1.1982]
[1756865204394,0.1152,4332.3,4331.7,6.45370951]
[1756865204569,0.1152,4332.3,4331.7,4.1452]
[1756865204975,0.1152,4332.3,4331.9,2.30840303]
[1756865205177,0.1152,4332.3,4332.0,4.029]
[1756865205662,0.1152,4332.3,4331.7,0.1152]
[1756865205862,0.1152,4332.3,4331.8,4.028]
[1756865206071,0.1152,4332.3,4331.6,1.627]
[1756865206072,0.2906,4331.9,4331.6,1.627]
[1756865206396,0.1152,4331.8,4331.7,4.027]
[1756865206588,2.30798783,4332.8,4331.7,4.027]
[1756865206589,0.1152,4332.1,4331.7,7.07356245]
[1756865206782,2.30792851,4332.9,4332.0,2.30837886]
[1756865206985,0.1152,4332.6,4332.1,4.029]
[1756865207499,0.1152,4332.6,4332.1,4.4728]
[1756865207698,0.1152,4332.6,4332.1,6.78114158]
[1756865207995,0.1152,4332.6,4332.3,2.30819426]
[1756865208178,0.1152,4332.6,4332.1,4.4728]
[1756865208580,0.1152,4332.6,4332.1,4.029]
[1756865209003,0.1152,4332.6,4332.1,6.33733896]
[1756865209205,0.1152,4332.6,4332.1,4.029]
[1756865210200,2.30875496,4333.3,4332.1,4.029]
[1756865210201,0.001,4333.3,4332.5,0.2942]
[1756865210363,0.1152,4333.2,4333.0,2.30786787]
[1756865210568,0.1152,4333.2,4333.1,4.025]
[1756865211806,0.1152,4333.2,4332.7,2.30800949]
[1756865212021,0.1152,4333.2,4332.8,6.79317064]
[1756865212173,0.1152,4333.2,4332.8,7.23697064]
[1756865212568,0.1152,4333.2,4332.9,2.3079157]
[1756865212803,0.1152,4333.2,4333.1,0.2942]
[1756865212974,0.1152,4333.2,4333.1,4.3162]
[1756865213183,0.1152,4333.2,4333.1,4.76]
[1756865213737,0.1152,4333.2,4333.1,4.3162]
[1756865214022,0.1152,4333.2,4333.1,4.022]
[1756865214581,0.1152,4333.2,4332.8,0.02]
[1756865214772,3.35629656,4333.2,4332.8,0.02]
[1756865214980,0.1152,4333.1,4332.8,0.02]
[1756865215306,0.001,4333.3,4333.1,2.30781341]
[1756865215505,0.001,4333.3,4333.2,4.022]
[1756865215898,0.001,4333.3,4333.2,4.021]
[1756865216073,0.001,4333.3,4332.8,0.02]
[1756865216074,0.001,4333.3,4333.1,2.30781451]
[1756865216273,0.001,4333.3,4333.2,4.021]
[1756865216475,0.001,4333.3,4332.8,0.02]
[1756865216679,0.001,4333.3,4332.9,4.019]
[1756865217725,0.001,4333.3,4332.9,6.32691551]
[1756865217914,0.001,4333.3,4332.9,4.019]
[1756865218423,0.001,4333.3,4332.8,0.02]
[1756865218624,0.001,4333.3,4333.0,4.019]
[1756865219027,0.2142,4333.1,4332.8,0.02]
[1756865219199,0.2142,4333.1,4332.9,4.019]
[1756865219706,0.1152,4333.1,4332.9,4.019]
[1756865220432,2.3079231,4332.9,4332.8,0.02]
[1756865220596,0.792,4332.8,4331.7,0.1152]
[1756865220796,2.52661726,4331.8,4331.6,0.004]
[1756865221332,2.30856245,4331.7,4331.6,0.004]
[1756865221690,2.41346245,4331.7,4331.6,0.004]
[1756865222998,0.1049,4331.7,4331.6,0.004]
[1756865223424,2.41346245,4331.7,4331.6,0.004]
[1756865223646,4.32570952,4331.7,4331.6,0.004]
[1756865225123,3.10077565,4331.3,4331.2,0.004]
[1756865225312,10.2581127,4331.3,4331.2,0.004]
[1756865225510,6.10082896,4331.2,4330.8,0.02]
[1756865225708,8.40722896,4331.2,4330.8,0.02]
[1756865226029,8.51582896,4331.2,4330.8,0.02]
[1756865226337,2.30888227,4331.1,4329.8,0.02]
[1756865226508,0.792,4330.5,4329.8,0.02]
[1756865226725,2.30952215,4329.9,4329.8,0.02]
[1756865227432,3.2236592,4329.9,4329.8,0.02]
[1756865227636,3.9107592,4329.9,4329.8,0.02]
[1756865227835,4.53277821,4329.9,4329.8,0.02]
[1756865228298,4.23477821,4329.9,4329.8,0.02]
[1756865228922,1.53615606,4329.9,4329.8,0.02]
[1756865229122,3.20052215,4329.9,4329.8,0.02]
[1756865229638,3.2236592,4329.9,4329.8,0.02]
[1756865232104,3.9107592,4329.9,4329.8,0.02]
[1756865233439,3.20052215,4329.9,4329.8,0.02]
[1756865233639,7.22152215,4329.9,4329.8,0.02]
[1756865233839,8.17461715,4329.9,4329.8,0.02]
[1756865234039,4.05461715,4329.9,4329.8,0.02]
[1756865234725,4.1767542,4329.9,4329.8,0.02]
[1756865235127,1.86723205,4329.9,4329.8,0.02]
[1756865235330,2.45133205,4329.9,4329.8,0.02]
[1756865235641,7.73771715,4329.9,4329.8,0.02]
[1756865235842,11.37561715,4329.9,4329.8,0.02]
[1756865236532,11.49081715,4329.9,4329.8,0.02]
[1756865236723,11.49181715,4329.9,4329.8,0.02]
[1756865237844,10.40581715,4329.9,4329.8,0.02]
[1756865238216,6.47681715,4329.9,4329.8,0.02]
[1756865238416,10.50481715,4329.9,4329.8,0.02]
[1756865238618,11.29681715,4329.9,4329.8,0.02]
[1756865239948,11.68591715,4329.9,4329.8,0.02]
[1756865240149,11.59481715,4329.9,4329.8,0.02]